Cogmind - Beta 12 @@@ ROGUE MODE // 2023.03.19 @ 12:05:47 Player: maxwell Result: Exoskeleton Destroyed Performance ------------- Evolutions (9) 4500 Regions Visited (29) 5800 Robots Destroyed (459) 2295 Value Destroyed (23708) 23708 Prototype IDs (62) 1240 Alien Tech Used (8) 1600 Bonus (27575) 27575 TOTAL SCORE: 66718 Bonus ------- Triggered Max Security 2000 High Alert Combat Kills 3268 Follower Combat Kills 2390 Network Hubs Disabled 400 Met Data Miner 300 A7 Reached Mainframe 300 Met R17 at Cetus 500 Found Hidden Lab 3000 Used Core Reset Matrix 3000 Integrated Exoskeleton 5000 Destroyed MAIN.C Guards 500 Met MAIN.C 5000 Destroyed MAIN.C Shell 5000 Friendly Fire -3083 Cogmind --------- Core Integrity 0/1600 Matter 425/425 Energy 306/850 System Corruption 0% Temperature Cool (0) Movement Walking (90) Ox1 Location -1/Command Parts ------- > --- POWER (2) -------- Improved Quantum Reactor > --- PROPULSION (4) --- Myomer Leg Sigix Exoskeleton > --- UTILITY (5) ------ Advanced Power Amplifier Improved Energy Well Advanced Targeting Computer Graphene Brace Advanced Force Field > --- WEAPON (3) ------- Potential Cannon Fusion Bomb Launcher > --- INVENTORY (5) ---- Transdimensional Reconstructor Sigix Sheargun Sigix Sheargun Peak State ------------ > --- POWER ------------ Improved Quantum Reactor > --- PROPULSION ------- Myomer Leg Sigix Exoskeleton > --- UTILITY ---------- Advanced Power Amplifier Improved Energy Well Advanced Targeting Computer Graphene Brace Advanced Force Field > --- WEAPON ----------- Sigix Sheargun Potential Cannon > --- INVENTORY -------- Transdimensional Reconstructor Sigix Sheargun Fusion Bomb Launcher [Rating: 236] Favorites ----------- Power Reinforced Deuterium Engine Engine Reinforced Deuterium Engine Power Core Light Nuclear Core Reactor Quantum Reactor Propulsion Armored Treads Treads Armored Treads Leg Aluminum Leg Utility Huge Storage Unit Device Improved Sensor Array Storage Huge Storage Unit Processor Improved Signal Interpreter Hackware Quantum Router Protection Improved Medium Armor Plating Weapon Heavy Flak Cannon Energy Gun Advanced Variable Charge Gun Energy Cannon Neutron Cannon Ballistic Gun Hypervelocity Railgun Ballistic Cannon Heavy Flak Cannon Launcher Improved Grenade Launcher Impact Weapon Power Maul Slashing Weapon Molecular Scythe Build | -11 -10 -10 -9 -9 -8 -7 -7 -7 -7 -6 -6 -6 -6 -6 -5 -5 -5 -5 -5 -5 -4 -3 -3 -3 -2 -2 -2 -1 -1 ------- Run | Jun Mat Min Mat Min Mat Fac Low Low Dat Pro Fac Low Low Zio Pro Fac Ext Cet Arc Hub Fac Res Arm Lab Res Qua Sec Acc Com Slots Evolved 18 | . . . 2 . 2 2 . . . . 2 . . . . 2 . . . . 2 2 . . 2 . . 2 . Power 1 | . . . . . . . . . . . . . . . . . . . . . 1 . . . . . . . . Propulsion 4 | . . . 1 . 1 1 . . . . 1 . . . . . . . . . . . . . . . . . . Utility 12 | . . . . . 1 1 . . . . 1 . . . . 2 . . . . 1 2 . . 2 . . 2 . Weapon 1 | . . . 1 . . . . . . . . . . . . . . . . . . . . . . . . . . Parts Attached 543 | 6 6 2 20 8 28 31 8 7 . 18 20 10 7 5 9 7 27 15 7 17 40 18 63 22 70 14 41 7 10 Power 38 | 1 2 1 2 . 1 2 1 1 . 1 2 . . . . . 3 1 . . 2 1 6 1 2 2 6 . . Engine 12 | 1 2 1 2 . 1 . . . . 1 2 . . . . . 2 . . . . . . . . . . . . Core 8 | . . . . . . 2 1 1 . . . . . . . . 1 . . . . 1 1 . . . 1 . . Reactor 18 | . . . . . . . . . . . . . . . . . . 1 . . 2 . 5 1 2 2 5 . . Propulsion 81 | 2 . . 8 1 10 3 3 2 . 2 3 3 1 2 4 . 8 2 . . 4 2 6 . 7 1 5 1 1 Treads 77 | 2 . . 6 1 10 3 3 2 . 2 3 3 1 2 4 . 8 2 . . 4 2 6 . 7 1 5 . . Leg 4 | . . . 2 . . . . . . . . . . . . . . . . . . . . . . . . 1 1 Wheel . | . . . . . . . . . . . . . . . . . . . . . . . . . . . . . . Hover . | . . . . . . . . . . . . . . . . . . . . . . . . . . . . . . Flight . | . . . . . . . . . . . . . . . . . . . . . . . . . . . . . . Utility 241 | 1 2 . 2 2 4 15 . . . 9 8 3 2 3 2 5 13 4 1 12 25 10 21 14 48 5 18 6 6 Device 166 | . . . . . . 10 . . . 7 6 3 2 1 2 4 9 2 1 6 22 9 16 9 29 5 15 4 4 Storage 14 | 1 1 . . 1 . 1 . . . . . . . . . . 1 . . . . . . 1 4 . 2 . 2 Processor 11 | . . . . . 2 1 . . . . . . . . . 1 . 1 . . 1 . 1 . 2 . 1 1 . Hackware 3 | . . . . . . . . . . . . . . . . . . . . . . . . 1 1 . . 1 . Protection 47 | . 1 . 2 1 2 3 . . . 2 2 . . 2 . . 3 1 . 6 2 1 4 3 12 . . . . Artifact . | . . . . . . . . . . . . . . . . . . . . . . . . . . . . . . Weapon 183 | 2 2 1 8 5 13 11 4 4 . 6 7 4 4 . 3 2 3 8 6 5 9 5 30 7 13 6 12 . 3 Energy Gun 19 | 1 . . . . . . . . . . . . . . . . . 1 2 . 2 2 2 2 3 1 2 . 1 Energy Cannon 32 | . . . . . . 1 1 1 . 2 2 2 1 . . 1 . . . . . 1 9 2 2 1 5 . 1 Ballistic Gun 79 | 1 2 1 6 2 7 6 1 . . 3 . . 1 . 1 . 2 6 4 3 4 2 13 3 7 1 3 . . Ballistic Cannon 7 | . . . . . 1 1 . . . . 3 1 . . . . 1 . . . . . . . . . . . . Launcher 34 | . . . . 1 5 2 2 2 . 1 1 1 1 . 2 1 . 1 . 1 3 . 3 . 1 3 2 . 1 Special Weapon . | . . . . . . . . . . . . . . . . . . . . . . . . . . . . . . Impact Weapon 10 | . . . 2 2 . 1 . 1 . . 1 . 1 . . . . . . 1 . . 1 . . . . . . Slashing Weapon 2 | . . . . . . . . . . . . . . . . . . . . . . . 2 . . . . . . Piercing Weapon . | . . . . . . . . . . . . . . . . . . . . . . . . . . . . . . Special Melee Weapon . | . . . . . . . . . . . . . . . . . . . . . . . . . . . . . . Unidentified Prototypes 40 | . . . . . 1 4 . . . 1 . . . . . 1 1 4 . . . 3 10 8 1 . 5 1 . Corrupted Parts 8 | . . . . . . . . . . . . . . . . . . 7 1 . . . . . . . . . . System Corruption 60 | . . . . . . . . . . . . . . . . . . 56 4 . . . . . . . . . . Parts Lost 71 | . 2 3 3 1 13 1 2 . . 7 2 3 . . 2 . 6 . . 2 6 . 1 . 11 1 5 . . Power 9 | . 2 1 . . 1 1 1 . . . . . . . . . . . . . 1 . . . 1 1 . . . Propulsion 20 | . . . 2 1 5 . 1 . . 2 1 2 . . 1 . 3 . . . 2 . . . . . . . . Utility 24 | . . 1 . . 2 . . . . 2 1 1 . . . . 2 . . 2 2 . 1 . 8 . 2 . . Weapon 18 | . . 1 1 . 5 . . . . 3 . . . . 1 . 1 . . . 1 . . . 2 . 3 . . Highest Loss Streak 8 | . 1 2 1 1 8 1 1 . . 4 2 2 . . 2 . 2 . . 1 2 . 1 . 5 1 1 . . To Critical Strikes 1 | . . . . . . . . . . . . . . . . . 1 . . . . . . . . . . . . Average Slot Usage (%) 93 | . 92 90 92 99 92 91 95 100 100 99 96 99 100 100 99 95 98 80 82 81 87 91 88 84 83 86 80 59 63 Engine 3 | . 13 13 10 11 8 1 . . . 6 6 6 6 6 6 5 2 . . . . . . . . . . . . Core 1 | . . . . . . 5 3 7 7 . . . . . . . 2 . . . . 1 1 4 3 . . . . Reactor 2 | . . . . . . . . . . . . . . . . . . 4 5 5 9 7 7 4 4 8 8 7 7 Treads 30 | . 28 28 22 32 35 38 37 38 38 37 39 39 40 40 40 35 34 18 17 17 20 23 22 19 15 17 12 . . Device 12 | . . . . . . 6 7 7 7 6 13 12 13 13 13 18 20 14 17 14 16 22 22 18 23 26 23 15 19 Storage 6 | . 14 14 11 11 9 6 7 7 7 7 6 6 6 6 6 5 5 5 5 5 5 4 4 4 6 8 8 7 7 Processor 6 | . . . . . 9 7 7 7 7 7 6 6 6 6 6 5 5 11 11 11 10 11 9 14 9 8 6 7 7 Protection 6 | . 6 4 5 10 9 7 7 7 7 7 5 6 6 6 6 5 6 5 5 7 8 4 3 4 5 4 3 . . Energy Cannon 1 | . . . . . . . 6 . 7 8 4 4 1 . . 1 3 . . . . . 1 2 . . 2 7 6 Ballistic Gun 10 | . 27 28 32 28 15 4 14 14 7 9 3 . . . . 5 9 14 17 16 12 9 11 10 10 8 3 . . Ballistic Cannon 3 | . . . . . 4 6 . . . . 5 10 13 13 13 5 2 . . . . . . . . . . . . Launcher 1 | . . . . 4 . 2 1 3 7 4 . . . . 5 3 . . . . . . . . . 2 1 . . Impact Weapon 1 | . . . . . . 1 . 3 . . 2 3 3 6 . . . . . . . . . . . . . . . Naked Turns . | . . . . . . . . . . . . . . . . . . . . . . . . . . . . . . Heaviest Build 196 | 12 36 32 42 101 104 108 110 111 111 113 123 129 129 124 129 130 143 138 132 135 157 165 174 174 196 196 193 58 72 Greatest Support 230 | 40 40 40 66 66 84 116 124 124 119 119 128 120 128 128 130 130 156 230 230 230 230 183 210 189 195 208 230 90 85 Greatest Overweight (x) 3 | . . . 3 1 2 1 2 . . 1 1 1 1 . 1 . 1 . . . . 1 1 . 1 1 1 . 1 Average Overweight (x) . | . . . . . 1 . . . . . . 1 . . . . . . . . . . . . . . . . . Largest Inventory Capacity 25 | 8 15 15 15 25 25 25 25 25 25 25 25 25 25 25 25 25 25 25 25 25 25 25 25 25 25 25 25 5 5 Average Capacity 23 | 7 12 15 15 20 25 24 25 25 25 25 25 25 25 25 25 25 25 25 25 25 25 25 25 25 25 25 21 5 5 Most Carried 25 | 2 6 4 15 20 25 25 25 25 25 25 25 25 25 25 25 25 25 25 25 25 25 25 25 25 25 25 25 5 5 Average Carried 21 | . 3 3 10 16 20 24 24 24 25 24 23 23 24 24 24 23 23 24 24 24 23 22 23 21 22 24 19 4 4 Final Capacity 25 | 8 15 15 15 25 25 25 25 25 25 25 25 25 25 25 25 25 25 25 25 25 25 25 25 25 25 25 5 5 5 Final Carried 25 | 2 3 2 15 20 24 25 25 25 25 23 25 25 25 24 25 23 25 25 25 25 24 20 25 25 24 24 5 4 3 Class Distribution -------------------- 28% | Scavenger-Mutant 24% | Mutant 13% | Scavenger-Skirmisher 8% | Scavenger-Gunner 5% | Scavenger-Tank 4% | Skirmisher 4% | Tank 3% | Gunner Dominant Class ---------------- Mutant | -10/Materials Mutant | -10/Mines Gunner | -9/Materials Tank | -9/Mines Scavenger-Gunner | -8/Materials Mutant | -7/Factory Mutant | -7/Lower Caves Mutant | -7/Lower Caves Mutant | -7/Data Miner Derelict-Mutant | -6/Proximity Caves Mutant | -6/Factory Scavenger-Skirmisher | -6/Lower Caves Scavenger-Mutant | -6/Lower Caves Scavenger-Mutant | -6/Zion Scavenger-Mutant | -5/Proximity Caves Scavenger-Mutant | -5/Factory Scavenger-Mutant | -5/Extension Scavenger-Gunner | -5/Cetus Scavenger-Skirmisher | -5/Archives Scavenger-Skirmisher | -5/Hub_04(d) Scavenger-Mutant | -4/Factory Scavenger-Mutant | -3/Research Scavenger-Skirmisher | -3/Armory Mutant | -3/Lab Scavenger-Gunner | -2/Research Scavenger-Mutant | -2/Quarantine Scavenger-Mutant | -2/Section 7 Alien-Sigix | -1/Access Alien-Sigix | -1/Command Resources | -11 -10 -10 -9 -9 -8 -7 -7 -7 -7 -6 -6 -6 -6 -6 -5 -5 -5 -5 -5 -5 -4 -3 -3 -3 -2 -2 -2 -1 -1 ----------- Run | Jun Mat Min Mat Min Mat Fac Low Low Dat Pro Fac Low Low Zio Pro Fac Ext Cet Arc Hub Fac Res Arm Lab Res Qua Sec Acc Com Matter Collected 16148 | 205 390 134 942 134 1049 909 547 300 . 391 504 579 336 57 171 87 548 355 155 528 1198 627 1928 71 2743 283 819 . 158 Remotely 4348 | . . . . . . . . . . . . . . . . . . . . . . . 1772 . 1956 270 350 . . Salvage Created 22770 | . 610 138 1518 204 1043 881 610 301 . 697 639 689 261 . 8 87 1043 375 256 718 1401 383 2397 256 3605 864 2281 46 1459 Parts 1151 | . 45 7 98 17 47 54 27 15 . 28 26 17 17 . . 4 37 14 10 55 79 25 139 12 181 56 101 4 36 Haulers Intercepted 2 | . . . . . . . . . . . . . . . . . . . . 1 . . . . 1 . . . . Recyclers Shooed 11 | . . . 3 1 . . . . . . 1 . 1 . . . 2 . . . . . . . 2 1 . . . Parts Field Recycled . | . . . . . . . . . . . . . . . . . . . . . . . . . . . . . . Retrieved Matter . | . . . . . . . . . . . . . . . . . . . . . . . . . . . . . . Parts Self-Destructed 73 | . . . . . . . 19 11 . 27 . 5 9 2 . . . . . . . . . . . . . . . Prevented 22 | . . . . . . . . . . 6 . 12 3 . 1 . . . . . . . . . . . . . . Kills | -11 -10 -10 -9 -9 -8 -7 -7 -7 -7 -6 -6 -6 -6 -6 -5 -5 -5 -5 -5 -5 -4 -3 -3 -3 -2 -2 -2 -1 -1 ------- Run | Jun Mat Min Mat Min Mat Fac Low Low Dat Pro Fac Low Low Zio Pro Fac Ext Cet Arc Hub Fac Res Arm Lab Res Qua Sec Acc Com Combat Hostiles Destroyed 382 | . 18 4 31 11 30 27 19 11 . 14 9 14 9 . 1 1 10 5 3 5 18 5 32 3 41 14 30 1 16 Guns 196 | . 18 4 31 5 13 . 7 4 . 5 1 . . . . 1 4 4 3 5 15 5 25 3 36 2 4 . 1 Cannons 76 | . . . . . 8 18 2 . . 2 8 10 5 . 1 . 6 . . . . . . . 2 . 8 1 5 AOE 89 | . . . . 6 9 9 10 7 . 7 . 3 4 . . . . . . . 3 . 7 . 3 9 6 . 6 Classes Destroyed 24 | . 4 . 3 2 4 2 . 1 . 1 1 2 . . . . . . . 1 . . . . . . 2 . 1 Worker 14 | . 1 . 1 2 1 4 . . . . . . . . . 1 . . . . 2 . . . 1 1 . . . Builder 16 | . . . . . . 3 . . . . . . . . . . 1 . . 5 4 . . . . 3 . . . Hauler 2 | . . . . . . . . . . . . . . . . . . . . 1 . . . . 1 . . . . Recycler 12 | . . . 5 . . . . . . . 2 . . . . . 3 . . 1 1 . . . . . . . . Minesweeper 1 | . . . . . . . . . . . . 1 . . . . . . . . . . . . . . . . . Operator 4 | . . . . . 1 . . . . . . . . . . . . . . . 1 . 1 . . . 1 . . Drone 2 | . . . . . . . . . . 2 . . . . . . . . . . . . . . . . . . . Watcher 25 | . 3 . 3 . . 3 . . . . 1 . . . . . 1 2 . 2 3 1 2 . 1 1 . . 2 Swarmer 68 | . 6 . 5 3 3 5 5 8 . 2 . . 5 . . . 1 2 . . 4 . 2 . . 9 8 . . Grunt 137 | . 12 4 17 . 17 11 11 2 . 7 2 8 1 . . . 2 1 . . 5 . 10 3 18 . 2 . 4 Brawler 12 | . . . . . 2 . 2 . . . . 3 . . . . . . . . 1 . 3 . 1 . . . . Duelist 6 | . . . 1 . 1 2 . . . 1 . . . . . . . . . . . . . . . . 1 . . Protector 1 | . . . . . . . . . . . . . . . . . . . . . . . . . . . . . 1 Researcher 1 | . . . . . . . . . . . . . . . . . . . . . . . . . . . 1 . . Sentry 56 | . . . 8 2 4 4 2 1 . 2 4 2 1 . . 1 5 . 3 2 1 . 2 . 5 . 7 . . Demolisher 3 | . . . . 2 . . . . . . . . . . . . . . . . . . 1 . . . . . . Specialist 6 | . . . . . . . . . . . 1 . . . . . . . . . 2 . 2 . 1 . . . . Hunter 12 | . . . . . 2 1 . . . . . . . . . . . . . 1 . 1 . . 2 3 2 . . Programmer 52 | . . . . . . 4 . . . . 1 . . . 1 . . . . 1 5 4 12 . 12 2 7 1 2 Heavy 4 | . . . . . 1 . . . . . 1 . . . . . . . . 1 . . . . 1 . . . . Behemoth 3 | . . . . . . . . . . . . 1 . . . . 1 . . . . . . . 1 . . . . Cetus Guard 2 | . . . . . . . . . . . . . . . . . . 2 . . . . . . . . . . . S7 Guard 1 | . . . . . . . . . . . . . . . . . . . . . . . . . . . 1 . . M Guard 2 | . . . . . . . . . . . . . . . . . . . . . . . . . . . . . 2 M Shell/Atk 2 | . . . . . . . . . . . . . . . . . . . . . . . . . . . . . 2 M Shell/Def 2 | . . . . . . . . . . . . . . . . . . . . . . . . . . . . . 2 Combat Programmer 2 | . . . . . . . . . . . . . . . . . . . . . . . . . . . . . 2 Executioner 2 | . . . . . . . . . . . . . . . . . . . . . . . . . . . 2 . . Decomposer 2 | . . . . . . . 1 1 . . . . . . . . . . . . . . . . . . . . . Assembled 4 | . . . . 4 . . . . . . . . . . . . . . . . . . . . . . . . . Thug 1 | . . . . . . . . . . . . . . . . . 1 . . . . . . . . . . . . Butcher 2 | . . . . . . . . . . . . . . . . . 2 . . . . . . . . . . . . Mutant 3 | . . . . . . . . 1 . . . . 2 . . . . . . . . . . . . . . . . Best Kill Streak 8 | . 4 2 5 5 6 7 5 4 . 4 5 4 4 . 1 1 2 2 3 4 7 2 8 2 6 6 6 1 5 Combat Bots Only 6 | . 4 2 5 4 6 5 5 4 . 4 4 4 4 . 1 1 2 2 3 3 4 2 6 2 6 5 6 1 5 Max Kills in Single Turn 4 | . 2 1 3 2 2 3 2 3 . 2 1 2 4 . 1 1 2 2 1 2 3 1 3 1 3 3 3 1 2 Gunslinging 2 | . . . 2 . . . . . . . . . . . . . . . . 1 1 . 1 . 2 . . . . Exploded 4 | . . . . 2 2 3 2 3 . 2 . 2 4 . . . . . . . 2 . 3 . 1 2 3 . 1 Melee . | . . . . . . . . . . . . . . . . . . . . . . . . . . . . . . Uniques/NPCs Destroyed 3 | . . . . . . . . . . . . . . . . . . 2 . . . . . . . . . . 1 Revision 17 (-5/Cetus) A7 (-5/Cetus) MAIN.C Shell (-1/Command) Combat | -11 -10 -10 -9 -9 -8 -7 -7 -7 -7 -6 -6 -6 -6 -6 -5 -5 -5 -5 -5 -5 -4 -3 -3 -3 -2 -2 -2 -1 -1 -------- Run | Jun Mat Min Mat Min Mat Fac Low Low Dat Pro Fac Low Low Zio Pro Fac Ext Cet Arc Hub Fac Res Arm Lab Res Qua Sec Acc Com Damage Taken 38688 | . 563 234 1132 351 2258 1381 702 641 . 1110 1632 828 422 . 842 140 1200 397 45 1623 2849 712 2319 27 7646 1059 4490 34 4051 Core 3370 | . 69 63 138 14 114 105 95 60 . 85 108 . 28 . 33 17 84 26 . 106 181 17 146 . 207 10 389 10 1265 Absorbed by Shields 2432 | . . . . . . . . . . . . 194 . . . 50 94 94 . . . 259 . . 750 123 . . 868 Reduced by Siege Mode 1009 | . . . . . . . . . . . . . . . . . . . . 111 173 25 41 . 579 . 80 . . Redirected to Shielding 102 | . . . . . . . . . . . . . . . . . . . . . . . . . 102 . . . . Regen/Repaired (Parts) 3657 | . . . 36 . . 359 . . . . . . . . . . . . . . . . . . 1466 434 1362 . . Core Remaining (%) 72 | 100 . 47 . 62 79 . . . . 50 . . . . 80 . . . . 76 84 . . 87 . . 58 . . Volleys Fired 1202 | . 35 16 74 12 83 75 39 33 . 35 37 41 14 . 7 8 46 16 6 36 67 37 106 41 141 22 99 8 68 Largest 3 | . 2 2 3 3 3 2 3 2 . 3 3 3 2 . 2 2 3 3 3 3 3 3 3 3 3 3 3 1 2 Hottest 277 | . 46 46 69 66 80 85 83 53 . 148 145 196 106 . 106 120 173 240 105 105 105 240 240 120 277 200 252 200 200 Shots Fired 2441 | . 70 31 221 27 179 95 70 52 . 77 66 70 25 . 14 14 96 37 18 87 165 69 234 51 378 30 155 8 102 Gun 1799 | . 70 31 221 24 141 20 44 38 . 45 23 . . . . 7 54 33 18 85 163 69 195 15 350 9 68 6 70 Cannon 517 | . . . . . 27 65 14 8 . 24 43 66 24 . 14 6 42 . . . . . 29 36 24 5 56 2 32 Launcher 125 | . . . . 3 11 10 12 6 . 8 . 4 1 . . 1 . 4 . 2 2 . 10 . 4 16 31 . . Special . | . . . . . . . . . . . . . . . . . . . . . . . . . . . . . . Kinetic 1819 | . 70 31 221 24 168 85 44 38 . 45 54 44 23 . 14 10 58 32 18 85 158 32 193 15 316 9 32 . . Thermal 384 | . . . . . . . 14 8 . 24 12 22 1 . . 3 38 1 . . 5 37 31 36 45 5 68 2 32 Explosive 58 | . . . . 3 11 10 12 6 . 3 . . . . . 1 . . . 2 2 . 4 . 4 . . . . Electromagnetic 92 | . . . . . . . . . . 5 . 4 1 . . . . 4 . . . . 6 . 13 16 43 . . Slashing 88 | . . . . . . . . . . . . . . . . . . . . . . . . . . . 12 6 70 Robot Hit Streak 49 | . 10 12 13 8 20 9 17 20 . 11 18 11 14 . 3 4 15 5 8 38 26 20 13 6 49 10 24 1 18 Robot Miss Streak 7 | . 4 2 3 2 4 3 3 2 . 7 2 5 7 . 4 3 3 7 1 1 4 1 6 1 3 2 2 1 2 Penetration Max 2 | . . . . . . 1 . . . 1 . . . . . . . 1 . 1 1 . 2 . 2 1 1 . . Secondary Targets 31 | . 1 . 5 1 1 . 1 . . 1 . . . . . . . 1 . 1 3 1 5 . 10 . . . . Max Gunslinging Chain 2 | . 1 . 2 1 1 . 1 . . 1 . . . . . . . 1 . 1 1 1 1 . 2 . . . . Shots Hit Robots 1606 | . 53 28 157 17 124 60 47 39 . 44 49 52 18 . 14 10 76 15 13 42 118 41 134 9 271 15 77 1 82 Core Hits 976 | . 38 11 76 19 65 54 40 22 . 31 18 59 40 . 6 4 38 21 5 24 52 14 73 6 127 27 57 1 48 Critical Kills 94 | . 2 1 . . . . . . . . . . . . . . . 2 3 5 8 1 24 3 36 2 3 . 4 Critical Parts Destroyed 121 | . . . 1 . . . . . . . . 1 . . . . . 5 1 5 16 3 41 2 42 2 2 . . Critical Strikes 250 | . 2 1 1 . 2 10 . . . . 4 1 . . . . 1 8 4 10 26 4 70 5 88 4 5 . 4 Meltdown 6 | . . . . . . . . . . . . . . . . . . . . . . . . . . . 2 . 4 Destroy 227 | . 2 1 1 . . . . . . . . . . . . . 1 8 4 10 26 4 70 5 88 4 3 . . Blast 16 | . . . . . 2 10 . . . . 4 . . . . . . . . . . . . . . . . . . Smash 1 | . . . . . . . . . . . . 1 . . . . . . . . . . . . . . . . . Melee Attacks 52 | . . . 3 1 . 3 . 39 . . . 2 2 1 . . . . . 1 . . . . . . . . . Impact 52 | . . . 3 1 . 3 . 39 . . . 2 2 1 . . . . . 1 . . . . . . . . . Slashing . | . . . . . . . . . . . . . . . . . . . . . . . . . . . . . . Piercing . | . . . . . . . . . . . . . . . . . . . . . . . . . . . . . . Sneak Attacks 2 | . . . . . . . . 1 . . . 1 . . . . . . . . . . . . . . . . . Combat Hostiles . | . . . . . . . . . . . . . . . . . . . . . . . . . . . . . . Follow-up Attacks . | . . . . . . . . . . . . . . . . . . . . . . . . . . . . . . Damage Inflicted 59475 | . 794 521 2496 666 3666 4592 2349 1566 . 1566 2006 1941 695 . 201 306 2547 1289 368 1433 4127 1215 2725 76 5208 1754 4502 204 10662 Guns 25916 | . 741 520 2491 226 1333 291 572 566 . 567 306 . . . . 108 1016 696 368 1378 3685 1167 1320 76 3535 82 1029 . 3843 Cannons 14904 | . . . . . 1109 2522 309 165 . 384 1684 1499 589 . 201 154 1299 . . . . . 85 . 670 217 1286 155 2576 Explosions 18097 | . 53 . . 426 1204 1720 1468 751 . 615 . 332 106 . . 44 207 593 . . 442 . 1289 . 1003 1400 2152 49 4243 Melee 194 | . . . . . . . . 84 . . . 110 . . . . . . . . . . . . . . . . . Ramming 364 | . . 1 5 14 20 59 . . . . 16 . . . . . 25 . . 55 . 48 31 . . 55 35 . . Kinetic 27747 | . 741 520 2491 226 2442 2813 572 566 . 567 1744 1039 549 . 201 152 1113 696 368 1378 3685 732 1320 76 3058 82 616 . . Thermal 14759 | . 21 . . . . . 309 165 . 416 246 460 67 . . 110 1409 293 . . 92 435 85 . 1119 601 1908 204 6819 Explosive 8264 | . . . . 426 1204 1720 1468 751 . 260 . . . . . 44 . . . . 350 . 1038 . 1003 . . . . Electromagnetic 4231 | . 32 . . . . . . . . 323 . 332 79 . . . . 300 . . . . 251 . 28 1016 1870 . . Impact 194 | . . . . . . . . 84 . . . 110 . . . . . . . . . . . . . . . . . Slashing 3916 | . . . . . . . . . . . . . . . . . . . . . . . . . . . 73 . 3843 Piercing . | . . . . . . . . . . . . . . . . . . . . . . . . . . . . . . Highest Corruption 63 | . . . . . 3 . . . . . . 4 4 . 1 . . 56 60 63 11 1 2 . 26 27 28 . . Average Corruption 13 | . . . . . 2 . . . . . . 4 3 . 1 . . 51 58 61 9 1 1 . 17 26 27 . . Corruption Purged 7 | . . . . . . . . . . . . . 4 . . . . . . . . . 3 . . . . . . Corruption Blocked . | . . . . . . . . . . . . . . . . . . . . . . . . . . . . . . Effects 444 | . . . . . 8 . . . . . . 77 37 . 5 . . 26 10 52 29 . 18 . 65 35 82 . . Message Errors 98 | . . . . . 3 . . . . . . 20 7 . 2 . . 6 3 10 7 . 4 . 9 7 20 . . Matter Fused 108 | . . . . . 2 . . . . . . 26 9 . 1 . . 7 2 8 7 . 3 . 16 8 19 . . Heat Flow Errors 45 | . . . . . . . . . . . . 3 8 . . . . 1 1 6 4 . 1 . 10 3 8 . . Energy Discharges 50 | . . . . . 1 . . . . . . 9 2 . 1 . . 3 2 7 1 . 5 . 6 6 7 . . Parts Rejected 4 | . . . . . . . . . . . . . . . . . . . . . . . 1 . 2 . 1 . . Parts Fused 2 | . . . . . . . . . . . . . . . . . . . . . . . . . . . 2 . . Data Loss (minor) 49 | . . . . . 1 . . . . . . 8 4 . . . . 3 2 4 4 . 1 . 5 6 11 . . Data Loss (major) 20 | . . . . . . . . . . . . 3 2 . 1 . . 2 . 2 2 . 1 . 4 1 2 . . Misfires 16 | . . . . . . . . . . . . 6 1 . . . . 1 . 1 2 . . . 2 1 2 . . Alerts 12 | . . . . . 1 . . . . . . 2 2 . . . . 1 . 1 1 . . . 2 2 . . . Misdirections 7 | . . . . . . . . . . . . . . . . . . . . 1 . . . . 1 . 5 . . Weapon Failures 33 | . . . . . . . . . . . . . 2 . . . . 2 . 12 1 . 2 . 8 1 5 . . Overload Shots 10 | . . . . . . . . . . . . . . . . . . 1 . . . 7 2 . . . . . . Overflow Damage 1789 | . . . . 3 148 381 21 122 . 28 145 110 21 . . 4 34 61 . . 52 . . . 49 70 38 . 502 Projectiles 964 | . . . . . 142 337 20 . . 12 145 . 21 . . . 30 . . . . . . . 10 . . . 247 Explosions 613 | . . . . 3 6 44 1 45 . 16 . . . . . 4 4 61 . . 52 . . . 39 45 38 . 255 Melee 212 | . . . . . . . . 77 . . . 110 . . . . . . . . . . . . . 25 . . . Knockbacks 37 | . . . . 1 7 10 . . . . 3 3 1 . 7 . 3 . . 1 . . . . . 1 . . . Impact 5 | . . . . 1 . 1 . . . . . . . . . . 1 . . 1 . . . . . 1 . . . Kinetic 29 | . . . . . 6 9 . . . . 3 2 1 . 7 . 1 . . . . . . . . . . . . Secondary 3 | . . . . . 1 . . . . . . 1 . . . . 1 . . . . . . . . . . . . Self-Inflicted Damage 1504 | . 71 . . 52 67 214 35 78 . 21 . . . . . . 49 . . 166 246 . 29 . . 66 405 . 5 Shots 44 | . 2 . . 2 2 4 1 2 . 2 . . . . . . 1 . . 2 3 . 1 . . 3 18 . 1 Rammed 29 | . 1 1 2 2 2 4 . . . . 2 . . . . . 3 . . 5 . 3 2 . . 1 1 . . Targets Rammed 33 | . 1 1 2 4 3 4 . . . . 2 . . . . . 3 . . 5 . 3 2 . . 1 2 . . Kicked 1 | . . . . . . . . . . . . . . . . . . . . . . . . . . . 1 . . Crushed 3 | . . . . 2 1 . . . . . . . . . . . . . . . . . . . . . . . . Highest Temperature 440 | . 20 10 186 88 60 60 88 75 . 364 207 308 194 . 192 153 194 184 133 208 339 422 440 36 306 205 360 . . Average Temperature 75 | . 6 3 60 47 13 15 29 27 . 120 76 80 71 . 86 56 69 41 31 81 96 142 82 9 101 98 126 . . Received Heat Transfer 5990 | . 216 135 522 45 558 270 258 168 . 393 405 153 192 . 120 18 204 53 . 27 387 . 306 9 999 36 189 . 327 Effects 17 | . . . . . . . . . . 3 . . . . . . . . . . . 8 . . 2 . 4 . . Shutdowns 3 | . . . . . . . . . . . . . . . . . . . . . . 3 . . . . . . . Energy Bleed 3 | . . . . . . . . . . . . . . . . . . . . . . . . . 1 . 2 . . Interference 7 | . . . . . . . . . . 3 . . . . . . . . . . . 2 . . . . 2 . . Matter Decay 2 | . . . . . . . . . . . . . . . . . . . . . . 2 . . . . . . . Damage (minor) 1 | . . . . . . . . . . . . . . . . . . . . . . . . . 1 . . . . Damage (major) 1 | . . . . . . . . . . . . . . . . . . . . . . 1 . . . . . . . Siege Activations 45 | . . . . . . . . . . . . . . . . . . . 2 4 7 5 16 . 8 1 2 . . Total Turns 787 | . . . . . . . . . . . . . . . . . . . 9 61 116 58 161 . 336 10 36 . . Longest Duration 98 | . . . . . . . . . . . . . . . . . . . 6 30 48 28 30 . 98 10 18 . . Robots Corrupted 14 | . . . . . . . . . . . . . . . . . . 1 . . . . . . . 3 10 . . Combat Hostiles 14 | . . . . . . . . . . . . . . . . . . 1 . . . . . . . 3 10 . . Parts Fried 38 | . . . . . . . . . . 1 . 3 . . . . . 1 . . . . 2 . . 12 19 . . Impact Corruptions 10 | . . . . . 1 . . 5 . . . 3 . . . . . . . . . . . . . 1 . . . Robots Melted 6 | . . . . . . . . . . . . . . . . . . . . . . . . . . . 2 . 4 Combat Hostiles 6 | . . . . . . . . . . . . . . . . . . . . . . . . . . . 2 . 4 Parts Melted 20 | . . . . . . 1 . . . . . . . . . . 1 . . . . 3 . . 3 . 7 . 5 Heat Transferred 11522 | . 50 . . . . . 407 222 . 272 111 . 50 . . . 250 200 . . 50 518 74 . 1258 348 1619 130 5963 Parts Sabotaged . | . . . . . . . . . . . . . . . . . . . . . . . . . . . . . . Parts Stolen . | . . . . . . . . . . . . . . . . . . . . . . . . . . . . . . Parts Stripped . | . . . . . . . . . . . . . . . . . . . . . . . . . . . . . . Power Chain Reactions 15 | . 1 . . . . . . . . 2 . . 2 . . . 1 1 . . . . . . . 3 5 . . Missiles Intercepted . | . . . . . . . . . . . . . . . . . . . . . . . . . . . . . . Alert | -11 -10 -10 -9 -9 -8 -7 -7 -7 -7 -6 -6 -6 -6 -6 -5 -5 -5 -5 -5 -5 -4 -3 -3 -3 -2 -2 -2 -1 -1 ------- Run | Jun Mat Min Mat Min Mat Fac Low Low Dat Pro Fac Low Low Zio Pro Fac Ext Cet Arc Hub Fac Res Arm Lab Res Qua Sec Acc Com Peak Influence 1930 | . 353 148 584 274 416 821 . . . . 658 . . . . 111 612 1107 601 790 751 156 577 . 489 784 1930 1708 1100 Initial 1166 | . . 108 19 195 . 22 . . . . 334 . . . . 9 53 316 442 210 387 135 16 . . 273 351 1166 1100 Average 320 | . 210 73 259 122 220 265 . . . . 398 . . . . 42 289 744 579 352 424 83 145 . 237 522 837 1441 828 Maximum Alert Level 5 | . 1 . 2 1 2 3 . . . . 2 . . . . . 2 4 2 3 3 . 2 . 2 3 5 5 4 Low Security (%) 40 | 100 41 100 37 86 30 59 . . . . . . . . . 100 36 . . 1 7 100 76 . 37 . . . . Level 1 28 | . 58 . 45 13 67 2 . . . . 58 . . . . . 33 6 . 89 45 . 9 . 43 24 10 . . Level 2 19 | . . . 16 . 2 25 . . . . 40 . . . . . 29 36 100 2 35 . 13 . 19 68 25 . 14 Level 3 9 | . . . . . . 12 . . . . . . . . . . . 38 . 6 10 . . . . 7 52 . 84 Level 4 . | . . . . . . . . . . . . . . . . . . 18 . . . . . . . . . 43 1 Level 5 . | . . . . . . . . . . . . . . . . . . . . . . . . . . . . . . High Security . | . . . . . . . . . . . . . . . . . . . . . . . . . . . . . . Max Security . | . . . . . . . . . . . . . . . . . . . . . . . . . . . 11 56 . Squads Dispatched 97 | . 4 . 5 1 7 10 . . . . 7 . . . . 1 4 . . 1 4 1 9 . 11 4 20 6 2 Investigation 16 | . 3 . 3 . 2 3 . . . . 1 . . . . 1 2 . . . . . . . . . 1 . . Extermination 22 | . . . . . . 3 . . . . 1 . . . . . . . . . 3 1 5 . 5 1 2 . 1 Reinforcement 27 | . 1 . 1 1 2 4 . . . . 1 . . . . . 2 . . 1 1 . 4 . 3 3 3 . . Assault 23 | . . . 1 . . . . . . . 1 . . . . . . . . . . . . . . . 14 6 1 Garrison 9 | . . . . . 3 . . . . . 3 . . . . . . . . . . . . . 3 . . . . Intercept . | . . . . . . . . . . . . . . . . . . . . . . . . . . . . . . Searches Triggered 1 | . . . . . . . . . . . 1 . . . . . . . . . . . . . . . . . . Data Miner Redirects 3 | . . . . . . . . . . . . . . . . 1 1 . . . . . . . . . 1 . . Construction Impeded 4 | . . . . 1 . 1 . . . . . . . . . . . . . . . . . . . 1 1 . . Haulers Reinforced 2 | . . . . . . 1 . . . . . . . . . . . . . . . . . . . 1 . . . Active Scanning Responses . | . . . . . . . . . . . . . . . . . . . . . . . . . . . . . . Cargo Convoy Interrupts 1 | . . . . . . . . . . . . . . . . . . . . . . . . . 1 . . . . Stealth | -11 -10 -10 -9 -9 -8 -7 -7 -7 -7 -6 -6 -6 -6 -6 -5 -5 -5 -5 -5 -5 -4 -3 -3 -3 -2 -2 -2 -1 -1 --------- Run | Jun Mat Min Mat Min Mat Fac Low Low Dat Pro Fac Low Low Zio Pro Fac Ext Cet Arc Hub Fac Res Arm Lab Res Qua Sec Acc Com Distress Signals 28 | . . . 4 . 5 3 . . . . . . . . . . 2 2 . 1 . . 1 . 5 1 1 3 . Communications Jammed 146 | . . . . . . . . . . . 6 . . . . . . . . 4 42 . 88 . 5 . 1 . . Distress Signals 136 | . . . . . . . . . . . 1 . . . . . . . . 4 42 . 88 . . . 1 . . Times Spotted 646 | . 24 4 38 18 41 40 19 14 . 20 15 18 9 . 3 1 38 25 4 8 28 8 43 1 52 21 108 5 41 Peak Tracking Total 48 | . 4 2 7 13 6 5 5 4 . 5 3 5 4 . 1 1 3 9 2 3 4 3 7 1 8 5 48 8 17 Tactical Retreats 34 | . 1 . 2 . 1 1 . . . 2 . 5 . . 1 . 1 . . . 4 . 3 . 5 1 7 . . Traps | -11 -10 -10 -9 -9 -8 -7 -7 -7 -7 -6 -6 -6 -6 -6 -5 -5 -5 -5 -5 -5 -4 -3 -3 -3 -2 -2 -2 -1 -1 ------- Run | Jun Mat Min Mat Min Mat Fac Low Low Dat Pro Fac Low Low Zio Pro Fac Ext Cet Arc Hub Fac Res Arm Lab Res Qua Sec Acc Com Traps Triggered 19 | . 2 . 1 . 1 3 . . . . 3 . . . . . 3 . . . 2 . . . . 1 1 1 1 Indirectly . | . . . . . . . . . . . . . . . . . . . . . . . . . . . . . . Trap Hack Attempts . | . . . . . . . . . . . . . . . . . . . . . . . . . . . . . . Triggered . | . . . . . . . . . . . . . . . . . . . . . . . . . . . . . . Disarmed . | . . . . . . . . . . . . . . . . . . . . . . . . . . . . . . Reprogrammed . | . . . . . . . . . . . . . . . . . . . . . . . . . . . . . . Reused 2 | . . . . . . . . . . . . 2 . . . . . . . . . . . . . . . . . Traps Extracted . | . . . . . . . . . . . . . . . . . . . . . . . . . . . . . . Installed 9 | . . . . . . . . . . . . 9 . . . . . . . . . . . . . . . . . Triggered 4 | . . . . . . . . . . . . 2 . . . . . . . . . . . . 2 . . . . Most Traps Carried 8 | . . . . . . . . . . . . 8 . . . . . . . . . . . . . . . . . Machines | -11 -10 -10 -9 -9 -8 -7 -7 -7 -7 -6 -6 -6 -6 -6 -5 -5 -5 -5 -5 -5 -4 -3 -3 -3 -2 -2 -2 -1 -1 ---------- Run | Jun Mat Min Mat Min Mat Fac Low Low Dat Pro Fac Low Low Zio Pro Fac Ext Cet Arc Hub Fac Res Arm Lab Res Qua Sec Acc Com Machines Disabled 80 | . 1 . 1 1 2 2 1 1 . . 3 . 2 . . . 5 3 1 11 7 1 5 8 3 6 14 . 2 Max in Single Turn 4 | . 1 . 1 1 2 1 1 1 . . 1 . 1 . . . 1 1 . 4 3 1 1 1 1 2 2 . 1 Garrison Access 5 | . . . . . 1 2 . . . . 1 . . . . . . . . 1 . . . . . . . . . Network Hub 2 | . . . . . . . . . . . . . . . . . . . . 2 . . . . . . . . . Machines Repaired . | . . . . . . . . . . . . . . . . . . . . . . . . . . . . . . Machines Sabotaged . | . . . . . . . . . . . . . . . . . . . . . . . . . . . . . . Overloaded Fab Kills . | . . . . . . . . . . . . . . . . . . . . . . . . . . . . . . Hacking | -11 -10 -10 -9 -9 -8 -7 -7 -7 -7 -6 -6 -6 -6 -6 -5 -5 -5 -5 -5 -5 -4 -3 -3 -3 -2 -2 -2 -1 -1 --------- Run | Jun Mat Min Mat Min Mat Fac Low Low Dat Pro Fac Low Low Zio Pro Fac Ext Cet Arc Hub Fac Res Arm Lab Res Qua Sec Acc Com Machines Accessed 51 | . 6 . 5 . 8 8 1 2 4 . 3 . 1 . . 1 3 . . 1 2 . . . 1 . 4 . 1 Terminals 25 | . 4 . 3 . 5 3 . . . . 2 . . . . . 2 . . . 1 . . . 1 . 3 . 1 Fabricators 1 | . . . . . . 1 . . . . . . . . . . . . . . . . . . . . . . . Repair Stations 4 | . . . 1 . . 2 . . . . . . . . . . . . . . . . . . . . 1 . . Recycling Units 6 | . 2 . 1 . 1 . . . . . . . . . . 1 1 . . . . . . . . . . . . Scanalyzers 1 | . . . . . 1 . . . . . . . . . . . . . . . . . . . . . . . . Garrison Access 6 | . . . . . 1 2 . . . . 1 . . . . . . . . 1 1 . . . . . . . . Total Hacks 155 | . 16 . 16 . 27 18 1 8 30 . 8 . 1 . . 1 9 . . 1 2 . . . 3 . 13 . 1 Successful 93 | . 9 . 7 . 17 6 1 8 30 . 2 . 1 . . 1 3 . . 1 1 . . . . . 5 . 1 Failed 62 | . 7 . 9 . 10 12 . . . . 6 . . . . . 6 . . . 1 . . . 3 . 8 . . Catastrophic 9 | . 1 . 1 . 2 1 . . . . 1 . . . . . 1 . . . . . . . 2 . . . . Database Lockouts . | . . . . . . . . . . . . . . . . . . . . . . . . . . . . . . Manual 61 | . 11 . 8 . 17 8 . . . . 5 . . . . 1 8 1 . . 2 . . . . . . . . Terminals 73 | . 13 . 10 . 18 5 . . . . 6 . . . . . 6 . . . 1 . . . 3 . 10 . 1 Fabricators 2 | . . . . . . 2 . . . . . . . . . . . . . . . . . . . . . . . Repair Stations 15 | . . . 5 . . 7 . . . . . . . . . . . . . . . . . . . . 3 . . Recycling Units 9 | . 3 . 1 . 1 . . . . . . . . . . 1 3 . . . . . . . . . . . . Scanalyzers 7 | . . . . . 7 . . . . . . . . . . . . . . . . . . . . . . . . Garrison Access 9 | . . . . . 1 4 . . . . 2 . . . . . . . . 1 1 . . . . . . . . Terminal Hacks 63 | . 6 . 3 . 7 . 1 8 30 . . . 1 . . . 2 . . . 1 . . . . . 3 . 1 Record 18 | . . . . . . . . 7 11 . . . . . . . . . . . . . . . . . . . . Part Schematic 11 | . . . . . . . . . 11 . . . . . . . . . . . . . . . . . . . . Robot Schematic 5 | . . . . . . . . . 5 . . . . . . . . . . . . . . . . . . . . Robot Analysis 6 | . 3 . 1 . 2 . . . . . . . . . . . . . . . . . . . . . . . . Prototype ID Bank 10 | . 3 . 2 . 2 . . . 3 . . . . . . . . . . . . . . . . . . . . Open Door 8 | . . . . . . . 1 1 . . . . 1 . . . 1 . . . . . . . . . 3 . 1 Alert Level 2 | . . . . . . . . . . . . . . . . . 1 . . . 1 . . . . . . . . Unreport Threat 2 | . . . . . 2 . . . . . . . . . . . . . . . . . . . . . . . . Locate Traps 1 | . . . . . 1 . . . . . . . . . . . . . . . . . . . . . . . . Fabricator Hacks . | . . . . . . . . . . . . . . . . . . . . . . . . . . . . . . Repair Station Hacks 9 | . . . 3 . . 4 . . . . . . . . . . . . . . . . . . . . 2 . . Scan Component 5 | . . . 2 . . 2 . . . . . . . . . . . . . . . . . . . . 1 . . Repair 4 | . . . 1 . . 2 . . . . . . . . . . . . . . . . . . . . 1 . . Recycling Unit Hacks . | . . . . . . . . . . . . . . . . . . . . . . . . . . . . . . Scanalyzer 6 | . . . . . 6 . . . . . . . . . . . . . . . . . . . . . . . . Insert Component 3 | . . . . . 3 . . . . . . . . . . . . . . . . . . . . . . . . Analyze 3 | . . . . . 3 . . . . . . . . . . . . . . . . . . . . . . . . Garrison Access Hacks 3 | . . . . . 1 1 . . . . . . . . . . . . . 1 . . . . . . . . . Seal Access 3 | . . . . . 1 1 . . . . . . . . . . . . . 1 . . . . . . . . . Unauthorized Hacks 12 | . 3 . 1 . 3 1 . . . . 2 . . . . 1 1 . . . . . . . . . . . . Terminals 5 | . 1 . . . 2 . . . . . 1 . . . . . 1 . . . . . . . . . . . . Track 1 | . 1 . . . . . . . . . . . . . . . . . . . . . . . . . . . . Botnet 3 | . . . . . 1 . . . . . 1 . . . . . 1 . . . . . . . . . . . . Operators 1 | . . . . . 1 . . . . . . . . . . . . . . . . . . . . . . . . Fabricators . | . . . . . . . . . . . . . . . . . . . . . . . . . . . . . . Repair Stations . | . . . . . . . . . . . . . . . . . . . . . . . . . . . . . . Recycling Units 5 | . 2 . 1 . 1 . . . . . . . . . . 1 . . . . . . . . . . . . . Tunnel 5 | . 2 . 1 . 1 . . . . . . . . . . 1 . . . . . . . . . . . . . Scanalyzers . | . . . . . . . . . . . . . . . . . . . . . . . . . . . . . . Garrison Access 2 | . . . . . . 1 . . . . 1 . . . . . . . . . . . . . . . . . . Jam 2 | . . . . . . 1 . . . . 1 . . . . . . . . . . . . . . . . . . Data Cores Recovered 2 | . . . . . 1 . . . . . . . . . . . . . . . 1 . . . . . . . . Used . | . . . . . . . . . . . . . . . . . . . . . . . . . . . . . . Hacking Detections 28 | . 4 . 4 . 6 6 . . . . 3 . . . . . 2 . . . 1 . . . 1 . . . 1 Full Trace Events 2 | . . . 1 . 1 . . . . . . . . . . . . . . . . . . . . . . . . Feedback Events 1 | . . . . . 1 . . . . . . . . . . . . . . . . . . . . . . . . Corruption 1 | . . . . . 1 . . . . . . . . . . . . . . . . . . . . . . . . Feedback Blocked . | . . . . . . . . . . . . . . . . . . . . . . . . . . . . . . Robot Schematics Acquired 9 | . . . . . . . . . 5 . . . . 3 . . . . . . . . . . . . 1 . . Robots Built . | . . . . . . . . . . . . . . . . . . . . . . . . . . . . . . Authchips . | . . . . . . . . . . . . . . . . . . . . . . . . . . . . . . Time . | . . . . . . . . . . . . . . . . . . . . . . . . . . . . . . Total Robot Build Rating . | . . . . . . . . . . . . . . . . . . . . . . . . . . . . . . Part Schematics Acquired 33 | . . . . . 3 . . . 11 . . . . 14 . . . . . . . . . . . . 5 . . Parts Built . | . . . . . . . . . . . . . . . . . . . . . . . . . . . . . . Authchips . | . . . . . . . . . . . . . . . . . . . . . . . . . . . . . . Time . | . . . . . . . . . . . . . . . . . . . . . . . . . . . . . . Total Part Build Rating . | . . . . . . . . . . . . . . . . . . . . . . . . . . . . . . Parts Repaired 4 | . . . 1 . . 2 . . . . . . . . . . . . . . . . . . . . 1 . . Time 98 | . . . 26 . . 64 . . . . . . . . . . . . . . . . . . . . 8 . . Parts Recycled . | . . . . . . . . . . . . . . . . . . . . . . . . . . . . . . Recycled Matter . | . . . . . . . . . . . . . . . . . . . . . . . . . . . . . . Retrieved Matter . | . . . . . . . . . . . . . . . . . . . . . . . . . . . . . . Retrieved Components . | . . . . . . . . . . . . . . . . . . . . . . . . . . . . . . Parts Scanalyzed 3 | . . . . . 3 . . . . . . . . . . . . . . . . . . . . . . . . Part Schematics Acquired 3 | . . . . . 3 . . . . . . . . . . . . . . . . . . . . . . . . Parts Damaged 1 | . . . . . 1 . . . . . . . . . . . . . . . . . . . . . . . . Bothacking | -11 -10 -10 -9 -9 -8 -7 -7 -7 -7 -6 -6 -6 -6 -6 -5 -5 -5 -5 -5 -5 -4 -3 -3 -3 -2 -2 -2 -1 -1 ------------ Run | Jun Mat Min Mat Min Mat Fac Low Low Dat Pro Fac Low Low Zio Pro Fac Ext Cet Arc Hub Fac Res Arm Lab Res Qua Sec Acc Com Used RIF Installer . | . . . . . . . . . . . . . . . . . . . . . . . . . . . . . . Robots Hacked . | . . . . . . . . . . . . . . . . . . . . . . . . . . . . . . Non-combat . | . . . . . . . . . . . . . . . . . . . . . . . . . . . . . . Combat . | . . . . . . . . . . . . . . . . . . . . . . . . . . . . . . Robot Hacks Applied . | . . . . . . . . . . . . . . . . . . . . . . . . . . . . . . Relay Couplers Released 6 | . . . . . . . . . . . . . . . . . . . . . . 3 . . 3 . . . . Machine Destruction 3 | . . . . . . . . . . . . . . . . . . . . . . . . . 3 . . . . Programmers 3 | . . . . . . . . . . . . . . . . . . . . . . 3 . . . . . . . Fabnet Peak Effective % . | . . . . . . . . . . . . . . . . . . . . . . . . . . . . . . Robots Rewired 25 | . . . . . . . 1 . . . . 1 4 . . 1 14 . . . . . 3 . 1 . . . . Allies Hacked 2 | . . . . . . . . . . . . . . . 2 . . . . . . . . . . . . . . Hacks Repelled . | . . . . . . . . . . . . . . . . . . . . . . . . . . . . . . Allies | -11 -10 -10 -9 -9 -8 -7 -7 -7 -7 -6 -6 -6 -6 -6 -5 -5 -5 -5 -5 -5 -4 -3 -3 -3 -2 -2 -2 -1 -1 -------- Run | Jun Mat Min Mat Min Mat Fac Low Low Dat Pro Fac Low Low Zio Pro Fac Ext Cet Arc Hub Fac Res Arm Lab Res Qua Sec Acc Com Total Allies 87 | . . . . 1 . . 1 . . 1 3 1 4 . . 1 25 1 . . 1 . 14 . 1 . . 13 20 Largest Group 16 | . . . . 1 1 . 1 . . 1 3 1 4 4 4 1 16 12 2 2 1 . 10 . 1 . . 7 7 Highest-Rated Group 769 | . . . . 31 31 . 16 . . 96 93 29 85 85 85 29 769 719 135 135 26 . 481 . 6 . . 95 97 Highest-Rated Ally 159 | . . . . 31 31 . 16 . . 96 31 29 25 25 25 29 159 159 96 96 26 . 58 . 6 . . 15 15 Total Orders 45 | . . . . . . . . . . . . 1 . . 4 . 5 2 . 5 7 2 7 . 2 2 5 1 2 STAY 11 | . . . . . . . . . . . . 1 . . 2 . 2 1 . 1 . . 4 . . . . . . FOLLOW 5 | . . . . . . . . . . . . . . . 2 . 1 1 . . . . 1 . . . . . . RETURN 29 | . . . . . . . . . . . . . . . . . 2 . . 4 7 2 2 . 2 2 5 1 2 Ally Attacks 444 | . . . . . 6 . . . . 14 30 8 . . 13 5 169 104 13 16 . . 8 . . . . 34 24 Total Damage 11454 | . . . . . 43 . . . . 420 510 139 . . 477 95 4008 3507 409 587 . . 252 . . . . 575 432 Kills 69 | . . . . . 1 . . . . 5 5 . . . 1 . 29 23 1 1 . . 1 . . . . 1 1 Allies Corrupted 4 | . . . . . . . . . . . . . . . . . . . . . 1 . 1 . . . . . 2 Allies Melted 2 | . . . . . . . . . . . . . . . . . . . . . . . 2 . . . . . . Intel | -11 -10 -10 -9 -9 -8 -7 -7 -7 -7 -6 -6 -6 -6 -6 -5 -5 -5 -5 -5 -5 -4 -3 -3 -3 -2 -2 -2 -1 -1 ------- Run | Jun Mat Min Mat Min Mat Fac Low Low Dat Pro Fac Low Low Zio Pro Fac Ext Cet Arc Hub Fac Res Arm Lab Res Qua Sec Acc Com Robot Analysis Total 6 | . 3 . 1 . 2 . . . . . . . . . . . . . . . . . . . . . . . . Derelict Logs Recovered 16 | . . 2 . 1 . . 3 2 . 2 . 2 1 1 2 . . . . . . . . . . . . . . Drone Launches 28 | . . . . . . . . . . . . . . . . . 2 . . 3 7 2 2 . 2 2 5 1 2 Drone Recoveries 28 | . . . . . . . . . . . . . . . . . 2 . . 3 7 2 2 . 2 2 5 1 2 Exploration | -11 -10 -10 -9 -9 -8 -7 -7 -7 -7 -6 -6 -6 -6 -6 -5 -5 -5 -5 -5 -5 -4 -3 -3 -3 -2 -2 -2 -1 -1 ------------- Run | Jun Mat Min Mat Min Mat Fac Low Low Dat Pro Fac Low Low Zio Pro Fac Ext Cet Arc Hub Fac Res Arm Lab Res Qua Sec Acc Com Turns Passed 41672 | 87 993 744 1642 1374 1890 2721 2447 2025 132 1576 1086 3844 2209 1387 1980 338 2309 602 203 686 1813 899 2559 935 2131 669 1418 139 834 Spaces Moved 19481 | 50 517 427 703 710 649 1358 1034 1108 81 787 497 1449 1064 812 1078 184 828 308 95 280 847 404 972 409 750 328 1035 278 439 Core 3 | 3 . . . . . . . . . . . . . . . . . . . . . . . . . . . . . Treads 17977 | 47 517 427 452 710 649 1358 1034 1108 81 787 497 1449 1064 812 1078 184 828 308 95 280 847 404 972 409 750 328 502 . . Legs 1501 | . . . 251 . . . . . . . . . . . . . . . . . . . . . . . 533 278 439 Wheels . | . . . . . . . . . . . . . . . . . . . . . . . . . . . . . . Hover . | . . . . . . . . . . . . . . . . . . . . . . . . . . . . . . Flight . | . . . . . . . . . . . . . . . . . . . . . . . . . . . . . . Fastest Speed 30 | 50 160 160 145 145 235 163 162 164 164 164 168 250 168 168 165 165 160 160 160 160 160 159 158 163 161 161 30 30 30 Average Speed 174 | 153 160 160 168 182 237 169 216 164 164 183 181 250 186 168 179 165 220 160 160 160 161 161 159 163 168 167 95 30 61 Slowest Speed 330 | 160 160 160 330 233 320 243 325 164 164 246 250 250 250 168 248 165 246 160 160 160 162 242 241 163 246 244 165 75 90 Overloaded Moves . | . . . . . . . . . . . . . . . . . . . . . . . . . . . . . . Propulsion Burnouts . | . . . . . . . . . . . . . . . . . . . . . . . . . . . . . . Robots Hopped 1 | . . . . . . . . . . . . . . . . . . 1 . . . . . . . . . . . Cave-ins Triggered . | . . . . . . . . . . . . . . . . . . . . . . . . . . . . . . Exploration Rate (%) 59 | 4 89 98 65 99 59 38 97 91 69 98 17 97 95 82 75 6 87 71 79 32 30 17 40 97 17 47 67 11 17 Regions Visited 29 Branch Regions 19 Pre-discovered Areas 10 | . 2 1 1 . 1 . 1 . 1 . . . . 1 1 1 . . . . . . . . . . . . . Known Exits Taken 22 | . . . 1 . . 1 1 1 1 1 1 1 1 1 1 1 1 1 1 1 1 1 1 1 1 . 1 . . Unknown Exits Taken 7 | 1 1 1 . 1 1 . . . . . . . . . . . . . . . . . . . . 1 . 1 . Scrap Searched 28 | . . 1 . 3 . . 3 3 . 4 . 3 4 3 4 . . . . . . . . . . . . . . Spaces Dug 409 | . . . 2 14 1 10 . 31 . . . 1 . . . 11 . . . 178 9 9 38 . . 14 67 9 15 Terrain Destroyed 1386 | . 4 . 2 44 86 82 79 78 . 41 8 10 8 . . 11 7 27 4 378 112 13 111 . 60 20 120 20 61 Melee 38 | . . . 2 1 . 2 . 31 . . . 1 . . . . . . . 1 . . . . . . . . . Projectile 271 | . . . . . 8 30 3 . . 6 8 9 . . . . 4 12 4 39 57 13 26 . . . 34 11 7 AOE 1051 | . 4 . . 43 78 50 76 47 . 35 . . 8 . . 11 3 15 . 338 54 . 77 . 43 20 86 9 54 Terrain Rammed . | . . . . . . . . . . . . . . . . . . . . . . . . . . . . . . Walls Destroyed . | . . . . . . . . . . . . . . . . . . . . . . . . . . . . . . Machines Disabled . | . . . . . . . . . . . . . . . . . . . . . . . . . . . . . . Actions | -11 -10 -10 -9 -9 -8 -7 -7 -7 -7 -6 -6 -6 -6 -6 -5 -5 -5 -5 -5 -5 -4 -3 -3 -3 -2 -2 -2 -1 -1 --------- Run | Jun Mat Min Mat Min Mat Fac Low Low Dat Pro Fac Low Low Zio Pro Fac Ext Cet Arc Hub Fac Res Arm Lab Res Qua Sec Acc Com Total 24891 | 57 613 457 991 757 829 1650 1191 1193 80 857 611 1605 1258 836 1109 203 1216 390 132 434 1154 593 1784 637 1314 416 1318 323 883 Wait 2621 | . 45 9 139 12 25 116 72 . . 10 31 56 121 8 7 1 129 23 15 87 181 115 541 126 279 41 50 26 356 Move 19451 | 49 516 426 702 709 648 1357 1033 1107 80 786 496 1448 1063 811 1077 183 827 305 94 280 846 403 971 408 749 327 1034 277 439 Hop 1 | . . . . . . . . . . . . . . . . . . 1 . . . . . . . . . . . Pick Up 326 | 2 6 2 30 8 28 41 3 3 . 5 8 20 3 4 5 1 13 12 5 5 11 5 23 11 18 4 49 . 1 Fast Attach 182 | 6 2 . 10 . 4 9 1 1 . 3 7 . 4 2 3 1 8 10 . 1 6 3 28 6 34 1 23 4 5 Attach 156 | . 4 2 8 2 15 6 3 2 . 7 7 4 . 3 3 2 12 1 1 2 10 7 5 11 18 1 13 3 4 Detach 42 | . . . 1 . 1 . . . . . 3 . . . . . 2 . . . . 3 1 11 12 . 2 3 3 Swap 213 | . . . 2 6 9 16 4 4 . 8 6 6 3 . 3 4 7 4 6 14 24 8 30 7 18 12 11 . 1 Drop 324 | . 4 1 20 3 13 23 2 4 . 3 10 16 7 7 4 2 15 18 5 4 9 9 47 16 33 7 34 2 6 Fire 1202 | . 35 16 74 12 83 75 39 33 . 35 37 41 14 . 7 8 46 16 6 36 67 37 106 41 141 22 99 8 68 Melee 52 | . . . 3 1 . 3 . 39 . . . 2 2 1 . . . . . 1 . . . . . . . . . Ram 1 | . . . . . . . . . . . . . . . . . . . . . . . . . . . 1 . . Kick 1 | . . . . . . . . . . . . . . . . . . . . . . . . . . . 1 . . Crush 31 | . 1 1 2 4 3 4 . . . . 2 . . . . . 3 . . 4 . 3 2 . . 1 1 . . Escape Stasis 10 | . . . . . . . . . . . 4 . . . . . 6 . . . . . . . . . . . . Rewire 269 | . . . . . . . 34 . . . . 3 41 . . 1 148 . . . . . 30 . 12 . . . . Trap 9 | . . . . . . . . . . . . 9 . . . . . . . . . . . . . . . . . Miscellaneous . | . . . . . . . . . . . . . . . . . . . . . . . . . . . . . . Route ------- -11/Junkyard -10/Materials (discovered 3 exits: *Mat x2 / [*Min]) -10/Mines (discovered 3 exits: *Mat x2 / [*Exi]) -9/Materials (discovered 3 exits: *Mat x2 / *Min) -9/Mines (discovered 2 exits: *Mat x2) -8/Materials (discovered 3 exits: *Fac / *Sto x2) -7/Factory (discovered 3 exits: *Fac x2 / *Low) -7/Lower Caves -7/Lower Caves (discovered 2 exits: *Fac / *Dat) -7/Data Miner -6/Proximity Caves -6/Factory (discovered 4 exits: Fac x3 / *Low) -6/Lower Caves -6/Lower Caves (discovered 2 exits: *Fac / *Zio) -6/Zion -5/Proximity Caves -5/Factory (discovered 4 exits: Fac / Upp / *Ext x2) -5/Extension (discovered 3 exits: *Fac x2 / *Cet) -5/Cetus (discovered 2 exits: *Fac / *Arc) -5/Archives (discovered 3 exits: *Fac / *Hub x2) -5/Hub_04(d) -4/Factory (discovered 6 exits: *Res x4 / Upp x2) -3/Research (discovered 3 exits: Res x2 / *Arm) -3/Armory (discovered 3 exits: Res x2 / *Lab) -3/Lab -2/Research (discovered 5 exits: Acc x3 / *Qua x2) -2/Quarantine (discovered 2 exits: Acc / *Sec) -2/Section 7 -1/Access -1/Command (discovered 2 exits: Sur x2) History --------- Turn | Location | Event 4 | -11/Junkyard | Discovered new exit (range 16) 88 | -11/Junkyard | Entered Materials 317 | -10/Materials | Build established: Mutant 337 | -10/Materials | Discovered new exit (range 15) 628 | -10/Materials | Discovered new exit (range 16) 1009 | -10/Materials | Discovered new exit (range 12) 1081 | -10/Materials | Entered Mines 1134 | -10/Mines | A weapon hastily lodged in a ceiling crevice suddenly fell to the ground 1302 | -10/Mines | Learned location of Zion (-6) 1550 | -10/Mines | Deemed a non-threat by the Exiles lab entrance 1552 | -10/Mines | Discovered new exit (range 5) 1661 | -10/Mines | Discovered new exit (range 6) 1688 | -10/Mines | Core integrity fell below 50% 1774 | -10/Mines | Learned location of 1 exit from Materials 1790 | -10/Mines | Discovered new exit (range 8) 1825 | -10/Mines | Entered Materials 1825 | -9/Materials | Evolved 2 slots: Propulsion x1, Weapon x1 1826 | -9/Materials | Identified exit to Mines 2133 | -9/Materials | Build established: Gunner 2405 | -9/Materials | Discovered new exit (range 16) 2934 | -9/Materials | Discovered new exit (range 11) 3235 | -9/Materials | Build established: Tank 3345 | -9/Materials | Repaired Assault Rifle 3425 | -9/Materials | First assault squad dispatched 3467 | -9/Materials | Entered Mines 3499 | -9/Mines | Received a Rocket Launcher from a helpful Derelict 3892 | -9/Mines | Assembled infested the area 3897 | -9/Mines | Assisted by a Guerilla fighting off Assembled 3974 | -9/Mines | Build established: Mutant 4042 | -9/Mines | Discovered new exit (range 5) 4279 | -9/Mines | Build established: Tank 4497 | -9/Mines | Discovered new exit (range 5) 4689 | -9/Mines | Received a Mining Laser from a helpful Derelict 4841 | -9/Mines | Entered Materials 4841 | -8/Materials | Accompanied by 1 ally 4841 | -8/Materials | Evolved 2 slots: Propulsion x1, Utility x1 4842 | -8/Materials | Identified exit to Storage 5254 | -8/Materials | Build established: Gunner 5461 | -8/Materials | Garrison activated, responded to threat 5562 | -8/Materials | Lost 8 parts (1p2n2u3w) 5641 | -8/Materials | Lost 3 parts (2n1w) 5730 | -8/Materials | Discovered new exit (range 16) 5942 | -8/Materials | Discovered exit to Storage (range 16) 5985 | -8/Materials | Build established: Scavenger-Gunner 6731 | -8/Materials | Entered Factory 6731 | -7/Factory | Evolved 2 slots: Propulsion x1, Utility x1 7169 | -7/Factory | Build established: Skirmisher 7626 | -7/Factory | Discovered new exit (range 15) 7650 | -7/Factory | Identified exit to Factory 7796 | -7/Factory | Repaired Huge Storage Unit 7838 | -7/Factory | Repaired Hvy. Assault Cannon 7939 | -7/Factory | Build established: Mutant 9356 | -7/Factory | Discovered exit to Factory (range 5) 9424 | -7/Factory | Discovered new exit (range 15) 9450 | -7/Factory | Identified exit to Lower Caves 9452 | -7/Factory | Entered Lower Caves 10055 | -7/Lower Caves | Learned location of 1 exit from Factory 10096 | -7/Lower Caves | Attracted the attention of an 0b10 checkpoint 10312 | -7/Lower Caves | Build established: Skirmisher 10347 | -7/Lower Caves | Discovered new exit (range 10) 10516 | -7/Lower Caves | Attracted the attention of an 0b10 outpost 11074 | -7/Lower Caves | Build established: Mutant 11894 | -7/Lower Caves | Identified exit to Lower Caves 11899 | -7/Lower Caves | Entered another Lower Caves area 11952 | -7/Lower Caves | Discovered exit to Factory (range 9) 12278 | -7/Lower Caves | Encountered a Warlord checkpoint 12561 | -7/Lower Caves | Attracted the attention of an 0b10 checkpoint 12809 | -7/Lower Caves | Learned 8 Factory zone layouts 12810 | -7/Lower Caves | Learned 8 Research zone layouts 12810 | -7/Lower Caves | Learned Factory security intel 12810 | -7/Lower Caves | Learned Armory terminal intel 12810 | -7/Lower Caves | Learned Extension security intel 12810 | -7/Lower Caves | Learned Research garrison access intel 12893 | -7/Lower Caves | Discovered new exit (range 8) 12974 | -7/Lower Caves | Identified exit to Data Miner 13209 | -7/Lower Caves | Learned Factory security intel 13924 | -7/Lower Caves | Entered Data Miner 13924 | -7/Data Miner | Discovered new exit (range 6) 13956 | -7/Data Miner | Met Data Miner 13985 | -7/Data Miner | Learned location of Section 7 (-2) 13985 | -7/Data Miner | Acquired the access code to Warlord's prototype stash 14010 | -7/Data Miner | Received God Mode back door access code from Data Miner 14054 | -7/Data Miner | Identified exit to Proximity Caves 14056 | -7/Data Miner | Entered Proximity Caves 14056 | -6/Proximity Caves | Learned 4 Factory zone layouts 14066 | -6/Proximity Caves | Learned Factory emergency access door positions 14234 | -6/Proximity Caves | Escorted by Enhanced Grunt 14235 | -6/Proximity Caves | Spotter reported a threat 14290 | -6/Proximity Caves | Attracted the attention of an 0b10 checkpoint 14398 | -6/Proximity Caves | Spotter reported a threat 14688 | -6/Proximity Caves | Build established: Derelict-Mutant 14847 | -6/Proximity Caves | Attracted the attention of an 0b10 outpost 14895 | -6/Proximity Caves | Lost 4 parts (1n1u2w) 15632 | -6/Proximity Caves | Entered Factory 15632 | -6/Factory | Evolved 2 slots: Propulsion x1, Utility x1 15633 | -6/Factory | Identified exit to Factory 15634 | -6/Factory | Identified exit to Lower Caves 15848 | -6/Factory | Allied Derelicts emerged from ambush trap array 15982 | -6/Factory | Search patrols dispatched 16148 | -6/Factory | Garrison activated, responded to threat 16317 | -6/Factory | Found Prototype Device 16682 | -6/Factory | First assault squad dispatched 16718 | -6/Factory | Entered Lower Caves 16826 | -6/Lower Caves | Build established: Mutant 17035 | -6/Lower Caves | Attracted the attention of an 0b10 outpost 17972 | -6/Lower Caves | Build established: Scavenger-Mutant 18360 | -6/Lower Caves | Spotted B-75 Beast 18592 | -6/Lower Caves | Destroyed B-75 Beast 19095 | -6/Lower Caves | Learned 4 Factory zone layouts 19197 | -6/Lower Caves | Attracted the attention of an 0b10 checkpoint 19230 | -6/Lower Caves | Build established: Scavenger-Skirmisher 20222 | -6/Lower Caves | Discovered new exit (range 15) 20239 | -6/Lower Caves | Learned 12 Factory zone layouts 20254 | -6/Lower Caves | Identified exit to Lower Caves 20562 | -6/Lower Caves | Entered another Lower Caves area 20735 | -6/Lower Caves | Discovered exit to Factory (range 15) 21150 | -6/Lower Caves | Learned Factory garrison access intel 21360 | -6/Lower Caves | Attacked by a delusional Derelict stockpiling parts 21378 | -6/Lower Caves | Build established: Scavenger-Mutant 22279 | -6/Lower Caves | Discovered new exit (range 9) 22315 | -6/Lower Caves | Attracted the attention of an 0b10 checkpoint 22480 | -6/Lower Caves | Attacked by a delusional Derelict stockpiling Unaware 22762 | -6/Lower Caves | Identified exit to Zion 22771 | -6/Lower Caves | Entered Zion 22771 | -6/Zion | Accompanied by 4 allies 22901 | -6/Zion | Discovered new exit (range 11) 23082 | -6/Zion | Given the Hacking Drone Bay 23084 | -6/Zion | Found Prototype Device 23120 | -6/Zion | Given A8's code to call for help 23211 | -6/Zion | Learned location of 1 exit from Factory 24145 | -6/Zion | Identified exit to Proximity Caves 24158 | -6/Zion | Entered Proximity Caves 24158 | -5/Proximity Caves | Accompanied by 4 allies 25604 | -5/Proximity Caves | Learned Factory trap positions 25757 | -5/Proximity Caves | Discovered exit to Factory (range 10) 25944 | -5/Proximity Caves | Spotted B-75 Beast 26138 | -5/Proximity Caves | Entered Factory 26138 | -5/Factory | Evolved 2 slots: Utility x2 26139 | -5/Factory | Identified exit to Extension 26140 | -5/Factory | Identified exit to Upper Caves 26140 | -5/Factory | Identified exit to Factory 26141 | -5/Factory | Loaded intel: 83 trap records 26143 | -5/Factory | Loaded intel: 4 garrison access locations 26243 | -5/Factory | Identified Hacking Drone Bay 26467 | -5/Factory | Incoming investigation squad redirected 26476 | -5/Factory | Entered Extension 26476 | -5/Extension | Accompanied by 1 ally 26708 | -5/Extension | Rescued a captive Derelict 26709 | -5/Extension | Rescued a captive Derelict 26892 | -5/Extension | Rescued a captive Derelict 26894 | -5/Extension | Rescued a captive Derelict 26951 | -5/Extension | Disrupted transfer network 27141 | -5/Extension | Rescued A7 27235 | -5/Extension | Enhanced Grunt warped into view, answering call for help 27237 | -5/Extension | Enhanced Grunt warped into view, answering call for help 27299 | -5/Extension | Rescued a captive Derelict 27300 | -5/Extension | Rescued a captive Derelict 27306 | -5/Extension | Incoming investigation squad redirected 27884 | -5/Extension | Spotted B-75 Beast 27893 | -5/Extension | Destroyed B-75 Beast 27916 | -5/Extension | Spotted B-75 Beast 27927 | -5/Extension | Allies destroyed B-75 Beast 28018 | -5/Extension | Discovered exit to Factory (range 3) 28072 | -5/Extension | Rescued a captive Derelict 28173 | -5/Extension | Build established: Scavenger-Tank 28276 | -5/Extension | Rescued a captive Derelict 28700 | -5/Extension | Discovered exit to Factory (range 10) 28702 | -5/Extension | Discovered new exit (range 6) 28762 | -5/Extension | Identified exit to Cetus 28785 | -5/Extension | Entered Cetus 28785 | -5/Cetus | Accompanied by 12 allies (A7) 28790 | -5/Cetus | Acquired a Cetus Manufacturing Module code from A7 28811 | -5/Cetus | Spotted Cetus Guard 28811 | -5/Cetus | Spotted Cetus Guard 28814 | -5/Cetus | Spotted Cetus Guard 28816 | -5/Cetus | Spotted Cetus Guard 28818 | -5/Cetus | Allies destroyed Cetus Guard 28824 | -5/Cetus | Destroyed Cetus Guard 28824 | -5/Cetus | Allies destroyed Cetus Guard 28829 | -5/Cetus | Allies destroyed Cetus Guard 28861 | -5/Cetus | System corruption reached 10% 28890 | -5/Cetus | System corruption reached 30% 28995 | -5/Cetus | Started Cetus Manufacturing Module 29014 | -5/Cetus | Escorted A7 to Cetus Mainframe 29020 | -5/Cetus | Manufactured an Enhanced Grunt 29044 | -5/Cetus | Cetus Manufacturing Module disabled 29128 | -5/Cetus | Discovered new exit (range 16) 29151 | -5/Cetus | Identified exit to Archives 29189 | -5/Cetus | Spotted Cetus Guard 29189 | -5/Cetus | Spotted Cetus Guard 29193 | -5/Cetus | Spotted Cetus Guard 29197 | -5/Cetus | Allies destroyed Cetus Guard 29198 | -5/Cetus | Spotted Cetus Guard 29203 | -5/Cetus | Discovered exit to Factory (range 15) 29211 | -5/Cetus | Destroyed Cetus Guard 29214 | -5/Cetus | Allies destroyed Cetus Guard 29215 | -5/Cetus | Allies destroyed Cetus Guard 29216 | -5/Cetus | Met Revision 17 29228 | -5/Cetus | Destroyed Revision 17 29317 | -5/Cetus | Build established: Scavenger-Gunner 29376 | -5/Cetus | Destroyed A7 29381 | -5/Cetus | Extracted ID and sensor layout for unrecognized location from A7's data core 29387 | -5/Cetus | Entered Archives 29387 | -5/Archives | Accompanied by 2 allies 29493 | -5/Archives | Discovered exit to Factory (range 15) 29515 | -5/Archives | Discovered new exit (range 16) 29534 | -5/Archives | Discovered new exit (range 15) 29578 | -5/Archives | Identified exit to Hub_04(d) 29590 | -5/Archives | Entered Hub_04(d) 29590 | -5/Hub_04(d) | Accompanied by 2 allies 29739 | -5/Hub_04(d) | Build established: Scavenger-Skirmisher 29965 | -5/Hub_04(d) | Discovered exit to Factory (range 11) 30223 | -5/Hub_04(d) | Network Hub disabled 30230 | -5/Hub_04(d) | Network Hub disabled 30276 | -5/Hub_04(d) | Entered Factory 30276 | -4/Factory | Evolved 2 slots: Power x1, Utility x1 31277 | -4/Factory | System corruption reached 10% 31366 | -4/Factory | Build established: Scavenger-Tank 31499 | -4/Factory | Identified exit to Upper Caves 31500 | -4/Factory | Identified exit to Research 31764 | -4/Factory | Build established: Scavenger-Mutant 32077 | -4/Factory | Spotted B-86 Titan 32089 | -4/Factory | Entered Research 32089 | -3/Research | Evolved 2 slots: Utility x2 32090 | -3/Research | Identified exit to Research 32090 | -3/Research | Identified exit to Armory 32091 | -3/Research | Loaded intel: 4 garrison access locations 32190 | -3/Research | Spotted B-86 Titan 32912 | -3/Research | Found Prototype Device 32912 | -3/Research | Identified Imp. Particle Accelerator 32988 | -3/Research | Entered Armory 32989 | -3/Armory | Loaded intel: 10 terminal locations 33276 | -3/Armory | Found Fusion Bomb Launcher 33279 | -3/Armory | Found Fusion Bomb Launcher 33281 | -3/Armory | Found Fusion Bomb Launcher 33284 | -3/Armory | Found Fusion Bomb Launcher 33287 | -3/Armory | Found Fusion Bomb Launcher 33989 | -3/Armory | Build established: Scavenger-Skirmisher 35253 | -3/Armory | Found Prototype Device 35253 | -3/Armory | Identified Exp. Thermal Shield 35286 | -3/Armory | Found Prototype Protection 35286 | -3/Armory | Identified Centrium Heavy Armor Plating 35291 | -3/Armory | Found Exp. Targeting Computer 35295 | -3/Armory | Found Prototype Slashing Weapon 35295 | -3/Armory | Identified Centrium Greatsword 35310 | -3/Armory | Found Prototype Slashing Weapon 35310 | -3/Armory | Identified Molecular Scythe 35362 | -3/Armory | Assisted by bots powering up and referring to "LRC-V3" 35544 | -3/Armory | Discovered new exit (range 3) 35546 | -3/Armory | Identified exit to Lab 35547 | -3/Armory | Entered Lab 35547 | -3/Lab | Discovered exit to Research (range 9) 35565 | -3/Lab | Hidden lab's door opened automatically 35565 | -3/Lab | Sensor layout match revealed 35566 | -3/Lab | Gained access to the hidden lab's interior 35645 | -3/Lab | Found Alien Artifact 35658 | -3/Lab | Found Alien Artifact 35670 | -3/Lab | Found Alien Artifact 35680 | -3/Lab | Found Alien Artifact 35716 | -3/Lab | Found Prototype Hackware 35800 | -3/Lab | Found Prototype Energy Cannon 35817 | -3/Lab | Found Prototype Energy Gun 35843 | -3/Lab | Build established: Mutant 35973 | -3/Lab | Found Prototype Protection 36133 | -3/Lab | Disabled Active System Cloaker 36243 | -3/Lab | MAIN.C forces arrive to investigate 36376 | -3/Lab | Identified Hvy. Regenerative Plating 36380 | -3/Lab | Identified Integrated Mediator 36380 | -3/Lab | Installed Integrated Mediator, increased core attachment efficiency. 36382 | -3/Lab | Identified Core Reset Matrix 36382 | -3/Lab | Identified Core Regenerator 36382 | -3/Lab | Identified Transdimensional Reconstructor 36382 | -3/Lab | Used Core Reset Matrix 36388 | -3/Lab | Identified Hyp. EM Gauss Rifle 36391 | -3/Lab | Identified Potential Cannon 36431 | -3/Lab | Identified Quantum Router 36482 | -3/Lab | Entered Research 36482 | -2/Research | Evolved 2 slots: Utility x2 36675 | -2/Research | Build established: Hacker-Gunner 36693 | -2/Research | Spotted B-90 Cyclops 36759 | -2/Research | Destroyed B-90 Cyclops 36782 | -2/Research | Found Unknown Device 36782 | -2/Research | Identified Quantum Capacitor 37066 | -2/Research | Build established: Scavenger-Gunner 37409 | -2/Research | Lost 5 parts (4u1w) 37508 | -2/Research | System corruption reached 10% 37551 | -2/Research | Cargo convoy interrupted 37669 | -2/Research | Identified exit to Quarantine 37677 | -2/Research | Identified exit to Access 37814 | -2/Research | Found Prototype Device 37818 | -2/Research | Identified Beam Splitter 38378 | -2/Research | Garrison activated, responded to threat 38613 | -2/Research | Entered Quarantine 38614 | -2/Quarantine | Detected hypermatrix surge 38614 | -2/Quarantine | Sensed 14 artifacts in vicinity 38883 | -2/Quarantine | Found Terrabomb 39141 | -2/Quarantine | Spotted Fortress 39214 | -2/Quarantine | Build established: Scavenger-Mutant 39275 | -2/Quarantine | Discovered new exit (range 5) 39282 | -2/Quarantine | Entered Section 7 39283 | -2/Section 7 | Sensed 22 artifacts in vicinity 39337 | -2/Section 7 | Repaired Huge Storage Unit 39800 | -2/Section 7 | Spotted S7 Guard 39815 | -2/Section 7 | Destroyed S7 Guard 39828 | -2/Section 7 | Found Core Membrane 39828 | -2/Section 7 | Installed Core Membrane, gained immunity to corruption 39964 | -2/Section 7 | Incoming investigation squad redirected 40190 | -2/Section 7 | Spotted Executioner 40200 | -2/Section 7 | Spotted Executioner 40214 | -2/Section 7 | Destroyed Executioner 40216 | -2/Section 7 | Destroyed Executioner 40430 | -2/Section 7 | Integrated with Sigix Exoskeleton 40470 | -2/Section 7 | Spotted B-99 Colossus 40491 | -2/Section 7 | Found LRC Matter Compressor 40491 | -2/Section 7 | Installed LRC Matter Compressor, increased matter storage capacity (+125) 40512 | -2/Section 7 | Found Core Expander 40512 | -2/Section 7 | Installed Core Expander, added new Weapon slot 40514 | -2/Section 7 | Found Core Expander 40514 | -2/Section 7 | Installed Core Expander, added new Propulsion slot 40515 | -2/Section 7 | Found Core Expander 40515 | -2/Section 7 | Installed Core Expander, added new Power slot 40532 | -2/Section 7 | First assault squad dispatched 40640 | -2/Section 7 | Spotted S7 Guard 40643 | -2/Section 7 | Spotted Executioner 40656 | -2/Section 7 | Found Integrated Thermoelectric Network 40656 | -2/Section 7 | Installed Integrated Thermoelectric Network, gained heat-energy exchange potential 40667 | -2/Section 7 | Spotted Striker 40667 | -2/Section 7 | Spotted Executioner 40667 | -2/Section 7 | Spotted Striker 40677 | -2/Section 7 | Spotted B-90 Cyclops 40694 | -2/Section 7 | Discovered exit to Access (range 16) 40700 | -2/Section 7 | Entered Access 40700 | -1/Access | Evolved 2 slots: Utility x2 40705 | -1/Access | Emitted hypermatrix ping 40710 | -1/Access | Assembled emerged from beneath the floor 40724 | -1/Access | Build established: Alien-Sigix 40779 | -1/Access | Assembled emerged from beneath the floor 40829 | -1/Access | Discovered new exit (range 17) 40839 | -1/Access | Entered Command 40844 | -1/Command | Emitted hypermatrix ping 40849 | -1/Command | Assembled emerged from beneath the floor 40855 | -1/Command | Identified exit to Surface 41056 | -1/Command | Assembled emerged from beneath the floor 41353 | -1/Command | Assembled emerged from beneath the floor 41383 | -1/Command | First assault squad dispatched 41424 | -1/Command | Spotted M Guard 41424 | -1/Command | Spotted M Guard 41425 | -1/Command | Destroyed M Guard 41425 | -1/Command | Spotted Combat Programmer 41431 | -1/Command | Destroyed Combat Programmer 41431 | -1/Command | Spotted Combat Programmer 41434 | -1/Command | Destroyed Combat Programmer 41462 | -1/Command | Sigix Exoskeleton integrity reduced to 80% 41472 | -1/Command | Destroyed M Guard 41472 | -1/Command | All MAIN.C guards destroyed 41545 | -1/Command | Met MAIN.C 41548 | -1/Command | 0b10 Conduit disabled 41627 | -1/Command | Sigix Exoskeleton integrity reduced to 60% 41631 | -1/Command | MAIN.C's shell transforms into a squad of autonomous robots 41631 | -1/Command | Destroyed MAIN.C Shell 41631 | -1/Command | Spotted M Shell/Def 41631 | -1/Command | Spotted M Shell/Atk 41631 | -1/Command | Spotted M Shell/Def 41631 | -1/Command | Spotted M Shell/Atk 41631 | -1/Command | Spotted M Shell/Atk 41631 | -1/Command | Spotted M Shell/Def 41631 | -1/Command | Spotted M Shell/Atk 41631 | -1/Command | Spotted M Shell/Def 41634 | -1/Command | MAIN.C activated Command garrisons 41646 | -1/Command | Destroyed M Shell/Def 41648 | -1/Command | Sigix Exoskeleton integrity reduced to 40% 41651 | -1/Command | Core integrity fell below 50% 41662 | -1/Command | Destroyed M Shell/Atk 41662 | -1/Command | Destroyed M Shell/Atk 41663 | -1/Command | Sigix Exoskeleton integrity reduced to 20% 41670 | -1/Command | Destroyed M Shell/Def 41673 | -1/Command | Exoskeleton Destroyed Last Messages --------------- 41662_ M Shell/Atk suffers critical hit (Meltdown). 41662_ M Shell/Atk destroyed. 41663_ Exo-853F: "Integrity reduced to 20%, immediate ERK application recommended to prevent critical system failure." 41663_ P-80 Master resets P-80 Master, system corruption cleaned. 41664_ B-74 Champion destroyed. 41665_ Knocked back. 41668_ Slug penetrates M Shell/Atk. 41668_ Penetrated by Slug. 41669_ Knocked back. 41669_ P-80 Master resets G-73 Enforcer, system corruption cleaned. 41670_ Destroyed Unknown Reactor. 41670_ M Shell/Def destroyed. 41670_ Knocked back. 41670_ C-30 ARC bursts open, deploying its payload. 41670_ S-43 Plague unfolds itself. 41671_ Chain reaction triggered in Unknown Reactor. 41671_ S-43 Plague destroyed. 41671_ P-80 Master destroyed. 41673_ Sigix Exoskeleton destroyed. Map ----- +----------------------------------------------------+ | ????????????????????????????????????????????????## | | ????????????????????????????????????????????????## | | ??????????????????????????????????????????????? ## | | ??????????????????????????????????????????????? ## | | ???????????????????????????????????????????????### | | ???????????????????????????????????????????????### | | ???????????????????????????????????????????????### | | ??????????????######?#####????# ??????????????#### | | ?????????###################### ?????????#### | | ??????################################//??????#### | | ????################################## ??????### | | ???################################### ##????### | | ?##################################### ###???### | | ###################################### ####??### | | ###################################### #####?### | | ###################################### #####??## | | ######################################p g######### | | ###################################### g######### | | ###################################### g######### | | ###################################### ######### | | ######################################C h######### | | ###################################### g######### | | """" ########################## h######### | | "" # ######################## g######### | | "" # ######################## h######### | | "" !MY Xggh ! ####p g######### | | = Y %%% %=lsxsh #### g######### | | ! i % ! pss% #### ######### | | ############;######i #### xg######### | | * ###################" ####x ######### | | ![= ################### ####p ######### | | !=%[! ""################### T### s### ### | | ]!!! """###################""C##"#b g ## | | ! """"""################### g C g | | """ """""""################### = g | | " " " ################### ! bh | | " " " " ################ # h | | " """" " ################ p | | " " """" ################ # # ## # | | " " " ######################## # | | ?""" " ######################### # # # # | | ??? """"""""########################## # | | ????" " ########################## # | | ??????################################ # ## | | ?????????############################# ## ###### | | ??????????????##?????################# ######### | | ??????????????????????################ ######### | | ???????????????????????############### ######### | | ?????????????????????????############# ######### | | ??????????????????????????############ ######### | +----------------------------------------------------+ Best States ------------- Heat Dissipation 122 Coolant Potential 80 Energy Generation 96 Energy Capacity 990 Matter Stores 425 Matter Capacity 700 Sight Range 22 Robot Scan Range 18 Terrain Scan Density 10 Jamming Range 16 Cloak Strength 4 Power Amplification 30 EM Shielding 3 Armor Coverage 2400 Resistance: KI 50 Resistance: TH 75 Resistance: EX 50 Resistance: EM 50 Resistance: I 50 Resistance: S 50 Resistance: P 50 Weapon Shielding 66 Evasion (%) 69 Targeting Accuracy 12 Launcher Accuracy 20 Target Analysis 8 Recoil Reduction 6 Defensive Hacking 25 Authchip Count 1 Item Schematics ----------------- Cld. Impulse Thruster | -2/Section 7 | Archive Adv. Energy Well | -2/Section 7 | Archive Imp. Matter Compressor | -2/Section 7 | Archive Exp. Terrain Scan Processor | -2/Section 7 | Archive Lrn. Phase Cannon | -2/Section 7 | Archive Robot Schematics ------------------ A-02 Transporter | -2/Section 7 | Archive Fabricated ------------ Nothing Alien Tech Used ----------------- Integrated Mediator Core Reset Matrix Core Membrane Sigix Exoskeleton Sigix Sheargun LRC Matter Compressor Core Expander Integrated Thermoelectric Network Achievements -------------- None Challenges ------------ None Game ------ Seed CooledMatterSpear Manual? 0 Play Time 03:48:27 Cumulative 293.9 hours Start 2023.03.18 @ 07:06:07 End 2023.03.19 @ 12:05:47 Sessions 25 Manual Loads 0 Difficulty Rogue Special Mode None Game No. 423 Rogue 401 Adventurer 4 Explorer 18 Win Type - Total 12 Types 10/0/0/2/0/0/0/0/0 Lore% 71 Gallery% 90 Achievement% 74 Wizard Run 0 Options --------- ASCII 0 Keyboard 1 Movement Numpad Keybinds 0 Fullscreen 2 Font 18/SmallcapsGlow Map View 76x50 Tactical HUD 1 Map Filters NONE Filters NONE Steam X RUN: f7ff47fe-a622-405b-8fac-e9021fddf8f1